Cogmind - Beta 17 @@@ ROGUE MODE // 2026.08.06 @ 13:01:17 Player: Floof Enjoyer Result: Self-destructed Performance ------------- Evolutions (2) 1000 Regions Visited (3) 600 Robots Destroyed (16) 80 Value Destroyed (553) 553 Prototype IDs (1) 20 Alien Tech Used (0) 0 Bonus (0) 0 TOTAL SCORE: 2253 Bonus ------- None Cogmind --------- Core Integrity 270/550 Matter 186/300 Energy 95/480 System Corruption 0% Temperature Danger (454) Movement Core (550) Ox10 Location -8/Materials Parts ------- > --- POWER (2) -------- Improved Deuterium Engine Improved Deuterium Engine > --- PROPULSION (4) --- (None) > --- UTILITY (3) ------ Small Storage Unit Reflective Plating > --- WEAPON (2) ------- High-powered Shotgun > --- INVENTORY (8) ---- Improved Deuterium Engine Improved Deuterium Engine Advanced Weight Redist. System Terrain Scanner Improved Assault Rifle Peak State ------------ > --- POWER ------------ Improved Deuterium Engine Improved Deuterium Engine > --- PROPULSION ------- Titanium Leg Titanium Leg Titanium Leg Titanium Leg > --- UTILITY ---------- Small Storage Unit Visual Processing Unit Improved Light Armor Plating > --- WEAPON ----------- High-powered Shotgun High-powered Shotgun > --- INVENTORY -------- Improved Deuterium Engine Improved Deuterium Engine Advanced Weight Redist. System Terrain Scanner Reflective Plating Improved Assault Rifle [Rating: 33] Favorites ----------- Power Improved Deuterium Engine Engine Improved Deuterium Engine Propulsion Titanium Leg Leg Titanium Leg Wheel Wheel Utility Small Storage Unit Device Terrain Scanner Storage Small Storage Unit Processor Visual Processing Unit Protection Improved Light Armor Plating Weapon Field Laser Energy Gun Field Laser Ballistic Gun High-powered Shotgun Build | -11 -10 -9 -8 ------- Run | Yrd Mat Mat Mat Slots Evolved 4 | . . 2 2 Power 1 | . . . 1 Propulsion 2 | . . 2 . Utility 1 | . . . 1 Weapon . | . . . . Parts Attached 37 | 7 2 20 8 Power 9 | 1 . 3 5 Engine 9 | 1 . 3 5 Core . | . . . . Reactor . | . . . . Propulsion 12 | 2 . 10 . Treads . | . . . . Leg 8 | . . 8 . Wheel 4 | 2 . 2 . Hover . | . . . . Flight . | . . . . Utility 6 | 1 1 1 3 Device 2 | . 1 1 . Storage 1 | 1 . . . Processor 1 | . . . 1 Hackware . | . . . . Protection 2 | . . . 2 Artifact . | . . . . Weapon 10 | 3 1 6 . Energy Gun 4 | 1 1 2 . Energy Cannon . | . . . . Ballistic Gun 6 | 2 . 4 . Ballistic Cannon . | . . . . Launcher . | . . . . Special Weapon . | . . . . Impact Weapon . | . . . . Slashing Weapon . | . . . . Piercing Weapon . | . . . . Special Melee Weapon . | . . . . Unidentified Prototypes 1 | . . 1 . Parts Lost 9 | . . 2 7 Power 2 | . . 2 . Propulsion 4 | . . . 4 Utility 1 | . . . 1 Weapon 2 | . . . 2 Highest Loss Streak 7 | . . 1 7 To Critical Strikes . | . . . . Average Backups 5 | 2 4 6 5 Power . | 1 1 . 1 Propulsion 1 | . 2 1 . Utility 1 | . . 1 2 Weapon 2 | 1 1 3 1 Tool/Special . | . . . . Unused Backups 2 | . . 1 1 Power . | . . . . Propulsion . | . . . . Utility 2 | . . 1 1 Weapon . | . . . . Tool/Special . | . . . . Average Slot Usage (%) 97 | . 97 98 96 Engine 13 | . 14 10 18 Leg 33 | . . 40 33 Wheel 4 | . 28 2 . Device 10 | . 11 11 7 Storage 10 | . 14 11 9 Processor 2 | . . . 8 Energy Gun 9 | . 7 10 7 Ballistic Gun 12 | . 21 11 10 Peak Build Rating 33 | 6 7 22 33 Average Rating 18 | 4 6 16 30 On Entrance 7 | . 6 7 18 Avg Prop Armor Cover (%) 10 | . . 10 . Naked Turns . | . . . . Heaviest Build 35 | 11 12 19 35 Greatest Support 68 | 20 20 68 68 Greatest Overweight (x) 11 | . . 3 11 Average Overweight (x) . | . . . . Largest Inventory Capacity 8 | 8 8 8 8 Average Capacity 7 | 7 8 8 8 Most Carried 8 | 5 5 8 7 Average Carried 5 | 2 4 6 5 Final Capacity 8 | 8 8 8 8 Final Carried 8 | 4 4 8 5 Class Distribution -------------------- 100% | Mutant Dominant Class ---------------- Mutant | -10/Materials Mutant | -9/Materials Mutant | -8/Materials Resources | -11 -10 -9 -8 ----------- Run | Yrd Mat Mat Mat Matter Collected 785 | 237 47 383 118 Remotely . | . . . . Salvage Created 669 | 10 47 523 89 Parts 41 | 3 3 25 10 Haulers Intercepted . | . . . . Recyclers Shooed 2 | . . 1 1 Parts Field Recycled . | . . . . Retrieved Matter . | . . . . Parts Self-Destructed . | . . . . Prevented . | . . . . Parts Restored . | . . . . Kills | -11 -10 -9 -8 ------- Run | Yrd Mat Mat Mat Combat Hostiles Destroyed 13 | . 1 10 2 Guns 13 | . 1 10 2 Classes Destroyed 6 | 1 1 4 . Tunneler 1 | 1 . . . Recycler 1 | . . 1 . Watcher 1 | . . 1 . Grunt 9 | . 1 8 . Duelist 1 | . . 1 . Sentry 3 | . . 1 2 Best Kill Streak 4 | 1 1 4 1 Combat Bots Only 4 | . 1 4 1 Max Kills in Single Turn 1 | 1 1 1 1 Gunslinging . | . . . . Exploded . | . . . . Melee . | . . . . Uniques/NPCs Destroyed . | . . . . Combat | -11 -10 -9 -8 -------- Run | Yrd Mat Mat Mat Hostile Shots Fired 202 | . 14 72 116 Missed 40 | . 4 17 19 Hits 162 | . 10 55 97 Melee 4 | . . 4 . Projectile 158 | . 10 51 97 Critical Strikes 9 | . . 1 8 Damage Taken 2434 | . 156 756 1522 Core 459 | . . 179 280 Absorbed by Shields . | . . . . Ignored by Resistances 30 | . . . 30 Core Remaining (%) 85 | 100 100 55 . Volleys Fired 76 | 5 10 43 18 Largest 2 | 2 2 2 2 Hottest 88 | 60 60 88 88 Shots Fired 137 | 10 20 75 32 Gun 137 | 10 20 75 32 Cannon . | . . . . Launcher . | . . . . Special . | . . . . Kinetic 88 | 5 17 43 23 Thermal 49 | 5 3 32 9 Explosive . | . . . . Electromagnetic . | . . . . Robot Hit Streak 9 | 4 4 9 5 Robot Miss Streak 4 | 2 3 3 4 Penetration Max . | . . . . Secondary Targets 2 | . . 2 . Max Gunslinging Chain 1 | . . 1 . Shots Hit Robots 86 | 6 10 50 20 Core Hits 31 | 1 3 21 6 Critical Kills 1 | . . 1 . Critical Parts Destroyed 2 | 1 . 1 . Critical Strikes 5 | 1 . 3 1 Burn 2 | . . 1 1 Destroy 3 | 1 . 2 . Melee Attacks . | . . . . Impact . | . . . . Slashing . | . . . . Piercing . | . . . . Sneak Attacks . | . . . . Combat Hostiles . | . . . . Follow-up Attacks . | . . . . Damage Inflicted 1296 | 74 120 737 365 Guns 1269 | 74 120 729 346 Cannons . | . . . . Explosions . | . . . . Melee . | . . . . Ramming 27 | . . 8 19 Kinetic 874 | 51 120 426 277 Thermal 395 | 23 . 303 69 Explosive . | . . . . Electromagnetic . | . . . . Impact . | . . . . Slashing . | . . . . Piercing . | . . . . Highest Corruption . | . . . . Average Corruption . | . . . . Corruption Purged . | . . . . Corruption Blocked . | . . . . Overload Shots . | . . . . Overflow Damage . | . . . . Projectiles . | . . . . Explosions . | . . . . Melee . | . . . . Knockbacks 1 | . . . 1 Impact 1 | . . . 1 Kinetic . | . . . . Secondary . | . . . . Self-Inflicted Damage . | . . . . Shots . | . . . . Rammed . | . . . . Targets Rammed 3 | . . 2 1 Kicked 3 | . . 2 1 Crushed . | . . . . Highest Temperature 556 | . 45 234 556 Average Temperature 131 | . 17 67 251 Received Heat Transfer 1281 | . 90 345 846 Effects 15 | . . 1 14 Shutdowns 2 | . . . 2 Energy Bleed 2 | . . . 2 Interference 3 | . . 1 2 Matter Decay 1 | . . . 1 Short Circuit 3 | . . . 3 Damage (minor) 2 | . . . 2 Damage (major) 2 | . . . 2 Siege Activations . | . . . . Martial Activations . | . . . . Shielding Activations . | . . . . Robots Disrupted . | . . . . Combat Hostiles . | . . . . Robots Corrupted . | . . . . Combat Hostiles . | . . . . Parts Fried . | . . . . Impact Corruptions . | . . . . Robots Melted . | . . . . Combat Hostiles . | . . . . Parts Melted 1 | . . 1 . Heat Transferred 1015 | 50 . 743 222 Parts Sabotaged . | . . . . Parts Stolen . | . . . . Parts Stripped . | . . . . Power Chain Reactions . | . . . . Alert | -11 -10 -9 -8 ------- Run | Yrd Mat Mat Mat Maximum Alert Level . | . . . . Low Security (%) 100 | 100 100 100 100 Level 1 . | . . . . Level 2 . | . . . . Level 3 . | . . . . Level 4 . | . . . . Level 5 . | . . . . High Security . | . . . . Max Security . | . . . . Peak Influence 92 | 5 35 92 35 Initial 35 | . . 10 35 Average 19 | . 11 28 9 Influence Increases 368 | 5 45 258 60 Destroy 0b10 Robot/C 260 | . 20 200 40 Destroy 0b10 Robot/NC 15 | 5 . 10 . Destroy Leader 62 | . 10 32 20 Disable Machine 15 | . . 15 . Destroy Structure 1 | . . 1 . Lose Combat Pursuer 15 | . 15 . . Influence Decreases 368 | 5 20 199 144 Entered New Map 64 | . . 15 49 Time Decay 257 | 5 20 167 65 Lost Part 47 | . . 17 30 Squads Dispatched 1 | . . 1 . Investigation . | . . . . Extermination . | . . . . Reinforcement 1 | . . 1 . Assault . | . . . . Garrison . | . . . . Intercept . | . . . . Searches Triggered . | . . . . Construction Impeded . | . . . . Haulers Reinforced . | . . . . Active Scanning Responses . | . . . . Cargo Convoy Interrupts . | . . . . Stealth | -11 -10 -9 -8 --------- Run | Yrd Mat Mat Mat Distress Signals 2 | . . 1 1 Communications Jammed . | . . . . Distress Signals . | . . . . Times Spotted 21 | . 2 12 7 Peak Tracking Total 6 | . 2 5 6 Tactical Retreats 1 | . 1 . . Traps | -11 -10 -9 -8 ------- Run | Yrd Mat Mat Mat Traps Triggered . | . . . . Indirectly . | . . . . Trap Hack Attempts . | . . . . Triggered . | . . . . Disarmed . | . . . . Reprogrammed . | . . . . Reused . | . . . . Traps Extracted . | . . . . Installed . | . . . . Triggered . | . . . . Machines | -11 -10 -9 -8 ---------- Run | Yrd Mat Mat Mat Machines Disabled 1 | . . 1 . Max in Single Turn 1 | . . 1 . Machines Repaired . | . . . . Machines Dismantled . | . . . . Machines Sabotaged . | . . . . Overloaded Fab Kills . | . . . . Hacking | -11 -10 -9 -8 --------- Run | Yrd Mat Mat Mat Machines Accessed 1 | . 1 . . Terminals . | . . . . Fabricators . | . . . . Repair Stations . | . . . . Recycling Units 1 | . 1 . . Scanalyzers . | . . . . Garrison Access . | . . . . Total Hacks 1 | . 1 . . Successful 1 | . 1 . . Failed . | . . . . Catastrophic . | . . . . Database Lockouts . | . . . . Manual . | . . . . Terminals . | . . . . Fabricators . | . . . . Repair Stations . | . . . . Recycling Units 1 | . 1 . . Scanalyzers . | . . . . Garrison Access . | . . . . Terminal Hacks . | . . . . Fabricator Hacks . | . . . . Repair Station Hacks . | . . . . Recycling Unit Hacks 1 | . 1 . . Report Inventory 1 | . 1 . . Scanalyzer . | . . . . Garrison Access Hacks . | . . . . Unauthorized Hacks . | . . . . Terminals . | . . . . Fabricators . | . . . . Repair Stations . | . . . . Recycling Units . | . . . . Scanalyzers . | . . . . Garrison Access . | . . . . Data Cores Recovered . | . . . . Used . | . . . . Hacking Detections 1 | . 1 . . Full Trace Events . | . . . . Feedback Events . | . . . . Feedback Blocked . | . . . . Robot Schematics Acquired . | . . . . Robots Built . | . . . . Authchips . | . . . . Time . | . . . . Total Robot Build Rating . | . . . . Part Schematics Acquired . | . . . . Parts Built . | . . . . Authchips . | . . . . Time . | . . . . Total Part Build Rating . | . . . . Part Studies Acquired . | . . . . Parts Repaired . | . . . . Time . | . . . . Parts Recycled . | . . . . Recycled Matter . | . . . . Retrieved Matter . | . . . . Retrieved Components . | . . . . Parts Scanalyzed . | . . . . Part Schematics Acquired . | . . . . Parts Damaged . | . . . . Bothacking | -11 -10 -9 -8 ------------ Run | Yrd Mat Mat Mat Used RIF Installer . | . . . . Robots Hacked . | . . . . Non-combat . | . . . . Combat . | . . . . Robot Hacks Applied . | . . . . Relay Couplers Released . | . . . . Fabnet Peak Effective % . | . . . . Robots Rewired . | . . . . Allies Hacked . | . . . . Hacks Repelled . | . . . . Allies | -11 -10 -9 -8 -------- Run | Yrd Mat Mat Mat Total Allies . | . . . . Largest Group . | . . . . Highest-Rated Group . | . . . . Highest-Rated Ally . | . . . . Total Orders . | . . . . Ally Attacks . | . . . . Total Damage . | . . . . Kills . | . . . . Allies Corrupted . | . . . . Allies Melted . | . . . . Intel | -11 -10 -9 -8 ------- Run | Yrd Mat Mat Mat Active Infowar (turns) 800 | . 88 477 235 Optics 234 | . . . 234 Terrain 689 | . . 469 220 Structural 96 | . 88 8 . Robot Analysis Total . | . . . . Derelict Logs Recovered . | . . . . Drone Launches . | . . . . Drone Recoveries . | . . . . Exploration | -11 -10 -9 -8 ------------- Run | Yrd Mat Mat Mat Turns Passed 880 | 64 94 477 245 Spaces Moved 488 | 43 74 249 122 Core 10 | 8 . 1 1 Treads . | . . . . Legs 347 | . . 226 121 Wheels 131 | 35 74 22 . Hover . | . . . . Flight . | . . . . Fastest Speed 50 | 50 80 80 130 Average Speed 114 | 74 80 121 134 Slowest Speed 600 | 80 80 200 600 Overloaded Moves . | . . . . Propulsion Burnouts . | . . . . Robots Hopped . | . . . . Potential Cave-ins . | . . . . Cave-ins Triggered . | . . . . Exploration Rate (%) 19 | 4 29 27 16 Regions Visited 3 Branch Regions . Pre-discovered Areas . | . . . . Known Exits Taken . | . . . . Unknown Exits Taken 3 | 1 1 1 . Scrap Searched . | . . . . Spaces Dug . | . . . . Terrain Destroyed . | . . . . Melee . | . . . . Projectile . | . . . . AOE . | . . . . Terrain Rammed . | . . . . Walls Destroyed . | . . . . Machines Disabled . | . . . . Actions | -11 -10 -9 -8 --------- Run | Yrd Mat Mat Mat Total 672 | 64 89 352 167 Wait 2 | . . 2 . Move 485 | 42 73 248 122 Hop . | . . . . Pick Up 39 | 10 2 21 6 Fast Attach . | . . . . Attach 20 | 6 1 10 3 Detach . | . . . . Swap 27 | 1 2 12 12 Drop 20 | . 1 14 5 Fire 76 | 5 10 43 18 Melee . | . . . . Ram . | . . . . Kick 3 | . . 2 1 Crush . | . . . . Escape Stasis . | . . . . Rewire . | . . . . Trap . | . . . . Miscellaneous . | . . . . Route ------- -11/Scrapyard -10/Materials -9/Materials -8/Materials History --------- Turn | Location | Event 4 | -11/Scrapyard | Discovered new exit (range 16) 65 | -11/Scrapyard | Entered Materials 157 | -10/Materials | Discovered new exit (range 3) 159 | -10/Materials | Entered another Materials area 159 | -9/Materials | Evolved 2 slots: Propulsion x2 301 | -9/Materials | Build established: Mutant 560 | -9/Materials | Discovered new exit (range 15) 636 | -9/Materials | Entered another Materials area 636 | -8/Materials | Evolved 2 slots: Power x1, Utility x1 877 | -8/Materials | Core integrity fell below 50% 881 | -8/Materials | Self-destructed Last Messages --------------- (-11). Critical hit (Burn: +37). Overheating: Energy bleed (-17). Hpw. Shotgun broken. Overheating: Short circuit. Titanium Leg destroyed. Discarded Visual Processing Unit. Overheating: Sml. Storage Unit damaged (-79). K-01 Serf collects debris. Overheating: Matter decay (-27). Imp. Light Armor Plating destroyed. Power failure, Imp. Deuterium Engine shutdown. Overheating: Imp. Deuterium Engine damaged (-34). Overheating: Broken Hpw. Shotgun damaged (-12). K-01 Serf collects debris. Broken Hpw. Shotgun destroyed. K-01 Serf collects debris. Critical hit (Burn: +37). Map ----- +----------------------------------------------------+ | ???????????????????????????????? | | ???????????????????????????????? | | ???????????????????????????????? | | ???????????????????????????????? | | ???????????????????????????????? | | ???????????????????????????????? | | ???????????????????????????????? | | ????????????###+??????????????? | | ????????????# ??????????????? | | ???????????## ??????????????? | | ????????????# ""?????????????? | | ??????? ????# Y?????????????? | | +#####??????## "??????????????? | | ??????? ??????????????? | | ???????? ??????????????? | | #????????# #??????????????? | | #????????# #??????????#???? | | #????T???# ############???? | | # ???????# ## #???? | | #?? ????## ## """ !! #???? | | ######### # """Yg!! #???? | | % # """ !! #???? | | # T + "" #???? | | # ######### # k" [[ ##??? | | # #???????###### g !%! #??? | | # #???#????????# g! !@[##??? | | # #????????????###########???? | | # #???????#??????????????????? | | + #?????#??????#?????#?????#?# | | # #?????????????????????#????? | | # #?????????#??#??#?????????#? | | # #???##########?????##?##???? | | # #???# """ #???????#?????? | | # #???# ! "Y" #?????????????? | | # ##### #??##??#????#?? | | # + #???#?????????? | | # ##### ! #?????????????? | | #???# """ #########?#???? | | # #???# """ ## !!!!#?????? | | # #?#?# """ ##* !!!!##????? | | # #??## ##* #?????? | | ##########+### ##????? | | #????? | | T #????? | | #????? | | ####### #############???? | | ############ # #?????? | | ???# "T" # # #?????? | | ???# + + #?????? | | ???#= # # #?????? | +----------------------------------------------------+ Best States ------------- Heat Dissipation 31 Energy Generation 27 Energy Capacity 480 Matter Stores 300 Matter Capacity 300 Sight Range 18 Terrain Scan Range 14 Terrain Scan Density 10 Armor Coverage 150 Resistance: TH 10 Evasion (%) 55 Item Schematics ----------------- None Robot Schematics ------------------ None Fabricated ------------ Nothing Repaired ---------- Nothing Studied --------- None Alien Tech Used ----------------- None Achievements -------------- None Challenges ------------ None Game ------ Seed ThrowingSmartbombCycler Manual? 0 Play Time 00:12:29 Cumulative 11.7 hours Start 2026.08.06 @ 12:51:37 End 2026.08.06 @ 13:01:17 Sessions 1 Manual Loads 0 Difficulty Rogue Special Mode None Game No. 37 Rogue 37 Adventurer 0 Explorer 0 Win Type - Total 0 Types 0/0/0/0/0/0/0/0/0/0 Lore% 12 Gallery% 19 Achievement% 14 Wizard Run 0 Options --------- Layout 1 ASCII 0 Keyboard 0 Movement Mouse Keybinds 0 Fullscreen 1 Font 24/Smallcaps Map View 50x35 Zoom Use 0% Tactical HUD 0 Map Filters NONE Filters NONE Steam 1 RUN: 96ded0a1-9445-4161-b743-7d782588d5c7